Cogmind - Beta 12 @@@ ROGUE MODE // 2023.03.11 @ 11:06:24 Player: NoNeedToExplain Result: Destroyed by X-77 Beamer with Gatling Laser Performance ------------- Evolutions (7) 3500 Regions Visited (31) 6200 Robots Destroyed (360) 1800 Value Destroyed (13496) 13496 Prototype IDs (32) 640 Alien Tech Used (4) 800 Bonus (5593) 5593 TOTAL SCORE: 32029 Bonus ------- High Alert Combat Kills 1328 Follower Combat Kills 2661 Network Hubs Disabled 200 Met Data Miner 300 Met Zhirov 300 Met Warlord at Base 500 MAIN.C Attacked Warlord 500 Warlord Defense Kills 164 Friendly Fire -360 Cogmind --------- Core Integrity 0/1300 Matter 74/300 Energy 18/100 System Corruption 16% Temperature Cool (27) Movement Core (1350) Ox26 Location -3/Quarantine Parts ------- > --- POWER (2) -------- (None) > --- PROPULSION (6) --- (None) > --- UTILITY (10) ----- Improved Coolant Injector Huge Storage Unit Enhanced Optical Array Advanced Signal Interpreter > --- WEAPON (3) ------- (None) > --- INVENTORY (25) --- Experimental Coolant Injector Compact Matter Pod (150) Experimental Sensor Array Quantum Capacitor Femtoactuators Thermal Barrier Subatomic Replicator Vortex Rail (9) Compact HERF Cannon Compact HERF Cannon Matter Neutralizer Improved Matter Neutralizer Core Cannon Heavy Gauss Cannon CR-A16's Behemoth Slayer Peak State ------------ > --- POWER ------------ Light Antimatter Reactor Particle Reactor > --- PROPULSION ------- Improved Heavy Treads Improved Heavy Treads Armored Heavy Treads > --- UTILITY ---------- Advanced Power Amplifier Huge Storage Unit Enhanced Optical Array Experimental Sensor Array Centrium Medium Armor Plating Phase Armor Thermal Barrier Advanced Drone Bay > --- WEAPON ----------- Matter Neutralizer Core Cannon > --- INVENTORY -------- Armored Heavy Treads Centrium Heavy Treads Centrium Heavy Treads Experimental Coolant Injector Compact Matter Pod Advanced Gravity Neutralizer Advanced Signal Interpreter Quantum Capacitor Femtoactuators Improved Heavy Armor Plating Vortex Rail Compact HERF Cannon Compact HERF Cannon Hardcell Cannon Heavy Gauss Cannon Heavy Gauss Cannon Smartbomb Launcher CR-A16's Behemoth Slayer [Rating: 192] Favorites ----------- Power Antimatter Reactor Engine Improved Ion Engine Power Core Reinforced Fission Core Reactor Antimatter Reactor Propulsion Heavy Treads Treads Heavy Treads Leg Aluminum Leg Wheel Wheel Utility Huge Storage Unit Device Advanced Cooling System Storage Huge Storage Unit Processor Advanced Targeting Computer Hackware Hacking Suite Protection Improved Medium Armor Plating Artifact Phase Armor Weapon Improved Light Cannon Energy Gun Vortex Rail Energy Cannon Phase Cannon Ballistic Gun Light Assault Rifle Ballistic Cannon Improved Light Cannon Launcher Long-range Missile Launcher Special Weapon Molecular Deconstructor Slashing Weapon Scythe Piercing Weapon CR-A16's Behemoth Slayer Build | -11 -10 -10 -9 -9 -9 -8 -8 -7 -7 -7 -7 -6 -6 -6 -6 -6 -5 -5 -5 -5 -5 -5 -5 -4 -4 -4 -4 -4 -4 -3 -3 ------- Run | Jun Mat Min Mat Min Exi Min Mat Fac Low Low Zio Pro Fac Low Low Dat Pro Fac Was Fac Upp Upp War Pro Fac Ext Cet Arc Hub Res Qua Slots Evolved 14 | . . . 2 . . . 2 2 . . . . 2 . . . . 2 . . . . . . 2 . . . . 2 . Power 1 | . . . . . . . . . . . . . 1 . . . . . . . . . . . . . . . . . . Propulsion 4 | . . . 1 . . . 1 . . . . . 1 . . . . 1 . . . . . . . . . . . . . Utility 8 | . . . 1 . . . 1 2 . . . . . . . . . 1 . . . . . . 1 . . . . 2 . Weapon 1 | . . . . . . . . . . . . . . . . . . . . . . . . . 1 . . . . . . Parts Attached 416 | 6 9 7 27 11 2 6 24 39 5 23 6 9 26 2 3 . 23 4 16 7 5 7 10 22 13 22 8 4 6 40 24 Power 29 | 1 1 . 2 1 . . 1 2 . 1 1 . 4 . . . 2 . 3 . . . 1 . . 2 1 . . 4 2 Engine 12 | 1 1 . 2 1 . . 1 1 . 1 . . 3 . . . 1 . . . . . . . . . . . . . . Core 3 | . . . . . . . . 1 . . . . . . . . . . . . . . . . . . . . . 1 1 Reactor 14 | . . . . . . . . . . . 1 . 1 . . . 1 . 3 . . . 1 . . 2 1 . . 3 1 Propulsion 84 | 2 4 1 8 2 . 2 8 9 . 5 . . 9 . . . 3 1 5 2 . . . 3 1 5 2 . . 4 8 Treads 60 | . 4 1 5 1 . 1 5 3 . 3 . . 4 . . . 2 1 5 2 . . . 3 1 5 2 . . 4 8 Leg 1 | . . . . . . . 1 . . . . . . . . . . . . . . . . . . . . . . . . Wheel 23 | 2 . . 3 1 . 1 2 6 . 2 . . 5 . . . 1 . . . . . . . . . . . . . . Hover . | . . . . . . . . . . . . . . . . . . . . . . . . . . . . . . . . Flight . | . . . . . . . . . . . . . . . . . . . . . . . . . . . . . . . . Utility 161 | 1 3 3 6 6 2 . 10 19 4 7 3 3 5 2 3 . 6 3 2 4 3 7 4 11 5 7 3 . 5 17 7 Device 102 | . 2 2 . . . . 6 12 3 5 2 3 1 1 2 . 6 2 2 4 2 5 3 9 4 6 . . 2 14 4 Storage 8 | 1 1 . 2 2 1 . . . . . . . . . . . . . . . . . . . . . 1 . . . . Processor 12 | . . 1 . 1 . . 1 1 1 . . . 2 . . . . . . . . 1 1 . 1 . . . . 1 1 Hackware 6 | . . . 2 . . . . 3 . . . . 1 . . . . . . . . . . . . . . . . . . Protection 32 | . . . 2 3 1 . 3 3 . 2 1 . 1 1 1 . . 1 . . 1 1 . 2 . 1 2 . 3 2 1 Artifact 1 | . . . . . . . . . . . . . . . . . . . . . . . . . . . . . . . 1 Weapon 142 | 2 1 3 11 2 . 4 5 9 1 10 2 6 8 . . . 12 . 6 1 2 . 5 8 7 8 2 4 1 15 7 Energy Gun 7 | 1 . . . . . . . . . . . . . . . . . . . . . . 2 . . . . . . 4 . Energy Cannon 37 | . . . . . . . . . . . . 2 4 . . . 6 . 4 1 1 . 2 4 2 3 . 2 . 3 3 Ballistic Gun 5 | 1 1 2 1 . . . . . . . . . . . . . . . . . . . . . . . . . . . . Ballistic Cannon 47 | . . 1 7 1 . 2 4 5 1 5 2 2 . . . . . . 1 . . . . 1 4 3 1 1 . 3 3 Launcher 30 | . . . 3 1 . 2 1 1 . 3 . 2 3 . . . 4 . . . 1 . . 2 1 1 1 . 1 2 1 Special Weapon 2 | . . . . . . . . . . . . . . . . . 1 . . . . . . . . . . . . 1 . Impact Weapon . | . . . . . . . . . . . . . . . . . . . . . . . . . . . . . . . . Slashing Weapon 7 | . . . . . . . . 3 . 2 . . 1 . . . . . 1 . . . . . . . . . . . . Piercing Weapon 7 | . . . . . . . . . . . . . . . . . 1 . . . . . 1 1 . 1 . 1 . 2 . Special Melee Weapon . | . . . . . . . . . . . . . . . . . . . . . . . . . . . . . . . . Unidentified Prototypes 22 | . . 1 1 . . . 1 . . . 1 . . . . . 1 . 1 1 . 1 6 . . . 2 . . 1 5 Corrupted Parts 3 | . . 1 . . . . . . . . . . . . . . . . . . . . . . . . . . . . 2 System Corruption 13 | . . 10 . . . . . . . . . . . . . . . . . . . . . . . . . . . . 3 Parts Lost 73 | . 2 . 1 . . 2 7 3 . 12 . . 2 . 1 . 3 . . 1 . . 1 1 1 3 . . 3 13 17 Power 11 | . 1 . . . . . 1 1 . 1 . . . . . . . . . . . . . . . 1 . . 1 1 4 Propulsion 21 | . . . . . . 2 3 1 . 3 . . 2 . . . 2 . . . . . . . . . . . . 1 7 Utility 29 | . 1 . 1 . . . 3 1 . 4 . . . . 1 . . . . 1 . . 1 1 . 2 . . 2 7 4 Weapon 12 | . . . . . . . . . . 4 . . . . . . 1 . . . . . . . 1 . . . . 4 2 Highest Loss Streak 11 | . 2 . 1 . . 2 3 1 . 10 . . 1 . 1 . 1 . . 1 . . 1 1 1 3 . . 3 10 11 To Critical Strikes 2 | . . . . . . . . . . . . . . . . . . . . . . . . . . . . . . 1 1 Average Slot Usage (%) 91 | . 98 100 99 99 100 99 96 99 100 97 97 99 98 100 100 100 99 100 86 82 82 81 79 75 77 80 79 76 78 78 65 Engine 4 | . 14 14 11 11 11 11 6 4 7 7 3 . 6 13 13 13 12 5 . . . . . . . . . . . . . Reactor 4 | . . . . . . . . . . . 3 7 4 . . . . 5 10 11 11 11 8 5 5 7 10 10 9 6 6 Treads 19 | . 25 28 26 21 22 21 16 17 15 21 23 23 20 20 20 20 19 23 20 17 17 17 17 17 15 17 17 15 15 13 13 Wheel 5 | . 2 . 6 11 11 10 15 12 15 7 7 7 12 13 13 13 12 11 1 . . . . . . . . . . . . Device 12 | . 12 7 . . . . 8 12 15 20 22 23 8 11 13 13 13 17 17 17 14 15 14 10 10 14 7 5 7 16 14 Storage 7 | . 14 14 11 11 11 11 9 7 7 7 7 7 6 6 6 6 6 5 5 5 5 5 5 5 5 5 9 10 10 4 4 Processor 9 | . . 6 . 3 11 11 10 12 15 8 7 7 12 13 13 13 13 11 11 11 11 11 13 17 21 15 10 10 10 9 6 Hackware 1 | . . . 10 7 . . . 3 . . . . 2 1 . . . . . . . . . . . . . . . . . Protection 6 | . . . 10 10 11 11 8 7 7 6 7 7 7 6 6 6 6 5 5 5 7 6 5 5 4 2 7 10 8 9 3 Energy Cannon 4 | . . . . . . . . . . . . 2 11 13 13 13 10 11 6 11 10 11 8 5 9 2 10 8 10 5 3 Ballistic Gun 1 | . 24 22 . . . . . . . . . . . . . . . . . . . . . . . . . . . . . Ballistic Cannon 7 | . . 5 21 21 22 17 18 12 14 9 4 11 . . . . . . . . . . . 4 5 9 3 4 4 3 5 Naked Turns . | . . . . . . . . . . . . . . . . . . . . . . . . . . . . . . . . Heaviest Build 206 | 11 29 32 98 98 98 98 103 118 115 119 122 125 134 125 130 124 130 134 143 151 157 157 153 155 159 165 169 169 169 174 206 Greatest Support 235 | 32 40 40 69 20 10 10 26 32 32 98 10 70 123 22 22 22 22 22 215 215 215 215 215 215 210 210 220 220 220 230 235 Greatest Overweight (x) 12 | . . . 9 9 9 9 10 11 3 11 12 12 6 5 5 5 10 6 6 . . . . 1 . . 1 . . . 2 Average Overweight (x) 3 | . . . 2 8 9 9 4 6 3 8 10 7 5 5 5 5 5 5 . . . . . . . . . . . . . Largest Inventory Capacity 25 | 8 15 15 25 25 25 25 25 25 25 25 25 25 25 25 25 25 25 25 25 25 25 25 25 25 25 25 25 25 25 25 25 Average Capacity 23 | 6 14 15 18 25 25 25 25 25 25 25 25 25 25 25 25 25 25 25 25 25 25 25 25 25 25 25 25 25 25 25 25 Most Carried 25 | 6 15 15 25 25 25 25 25 25 25 25 25 25 25 25 25 25 25 25 25 25 25 25 25 25 25 25 25 25 25 25 25 Average Carried 23 | 3 13 14 17 24 24 24 24 24 24 16 24 24 24 24 24 25 24 24 24 24 24 24 24 24 24 24 24 24 24 23 23 Final Capacity 25 | 8 15 15 25 25 25 25 25 25 25 25 25 25 25 25 25 25 25 25 25 25 25 25 25 25 25 25 25 25 25 25 25 Final Carried 25 | 6 15 15 25 25 25 25 25 25 25 18 25 25 25 24 25 25 25 25 25 25 25 25 25 25 25 25 25 25 23 25 17 Class Distribution -------------------- 61% | Mutant 27% | Scavenger-Mutant 4% | Scavenger-Tank Dominant Class ---------------- Mutant | -10/Materials Mutant | -10/Mines Mutant | -9/Materials Mutant | -9/Mines Mutant | -9/Exiles Mutant | -8/Mines Mutant | -8/Materials Mutant | -7/Factory Mutant | -7/Lower Caves Mutant | -7/Lower Caves Mutant | -7/Zion Mutant | -6/Proximity Caves Mutant | -6/Factory Scavenger-Mutant | -6/Lower Caves Scavenger-Mutant | -6/Lower Caves Scavenger-Mutant | -6/Data Miner Scavenger-Mutant | -5/Proximity Caves Scavenger-Mutant | -5/Factory Scavenger-Mutant | -5/Waste Scavenger-Mutant | -5/Factory Scavenger-Mutant | -5/Upper Caves Scavenger-Mutant | -5/Upper Caves Commander-Mutant | -5/Warlord Mutant | -4/Proximity Caves Mutant | -4/Factory Scavenger-Mutant | -4/Extension Scavenger-Tank | -4/Cetus Scavenger-Tank | -4/Archives Scavenger-Tank | -4/Hub_04(d) Scavenger-Tank | -3/Research Scavenger-Mutant | -3/Quarantine Resources | -11 -10 -10 -9 -9 -9 -8 -8 -7 -7 -7 -7 -6 -6 -6 -6 -6 -5 -5 -5 -5 -5 -5 -5 -4 -4 -4 -4 -4 -4 -3 -3 ----------- Run | Jun Mat Min Mat Min Exi Min Mat Fac Low Low Zio Pro Fac Low Low Dat Pro Fac Was Fac Upp Upp War Pro Fac Ext Cet Arc Hub Res Qua Matter Collected 9471 | 248 397 139 985 176 . 170 844 1028 140 462 62 288 326 10 65 . 455 . 200 48 122 80 100 394 430 445 116 . 109 1456 176 Remotely 3176 | . 214 19 . . . . 454 752 140 . . . . . . . . . . . . . . . 166 275 . . . 1156 . Salvage Created 12925 | . 663 97 1092 99 . 126 878 928 17 666 61 171 559 . 113 . 642 . 868 45 339 624 91 645 779 360 227 . 857 1769 209 Parts 605 | . 45 6 77 7 . 11 33 54 4 15 2 8 29 . 6 . 16 . 6 2 20 14 . 30 49 18 5 . 46 96 6 Haulers Intercepted 14 | . 2 . 5 . . . 4 . . . . . 1 . . . . . . . . . . . . . . . 1 1 . Recyclers Shooed 10 | . 1 1 2 . . . . 2 . . . . . . . . . . . . . . . . 1 . . . . 2 1 Parts Field Recycled . | . . . . . . . . . . . . . . . . . . . . . . . . . . . . . . . . Retrieved Matter . | . . . . . . . . . . . . . . . . . . . . . . . . . . . . . . . . Parts Self-Destructed 113 | . . . . . . . . . 1 11 4 7 . . 10 . 18 . . . 25 14 . 23 . . . . . . . Prevented 14 | . . . . . . . . . . . . . . . . . . . . . 8 . . 6 . . . . . . . Kills | -11 -10 -10 -9 -9 -9 -8 -8 -7 -7 -7 -7 -6 -6 -6 -6 -6 -5 -5 -5 -5 -5 -5 -5 -4 -4 -4 -4 -4 -4 -3 -3 ------- Run | Jun Mat Min Mat Min Exi Min Mat Fac Low Low Zio Pro Fac Low Low Dat Pro Fac Was Fac Upp Upp War Pro Fac Ext Cet Arc Hub Res Qua Combat Hostiles Destroyed 253 | . 11 2 23 3 . 11 22 16 2 19 . 11 11 . 2 . 17 . . 1 6 9 1 14 10 8 3 . 11 36 4 Melee 3 | . . . . . . . . . . . . . . . . . 1 . . . . . . . . . . . 1 1 . Guns 15 | . 11 1 . . . . . . . . . . . . . . . . . . . . . . . . . . . 3 . Cannons 124 | . . 1 16 2 . 3 22 12 2 5 . 3 5 . 1 . 6 . . 1 4 6 . 9 6 3 3 . 4 10 . AOE 96 | . . . 7 1 . 8 . 4 . 14 . 8 6 . . . 10 . . . 2 . . 3 4 3 . . 6 16 4 Classes Destroyed 21 | . 7 1 1 1 . . 1 2 1 3 . . 2 . . . 1 . . . . . 1 . . . . . . . . Worker 26 | . . 1 1 1 . . 1 4 . . . . 1 . . . . . . . . . . . 2 1 . . 8 6 . Builder 21 | . 1 . 2 1 . . . 4 . . . . 1 . . . . . . . . . . . 1 2 . . 3 5 1 Tunneler 4 | . . . . . . . . . . . . . 1 . . . . . . . . . . . 1 . . . . 2 . Hauler 14 | . 2 . 5 . . . 4 . . . . . 1 . . . . . . . . . . . . . . . 1 1 . Recycler 20 | . 2 . 5 . . . 2 4 . . . . . . . . . . . . . . . . 3 . . . 1 3 . Minesweeper 1 | . . . . . . . . . . 1 . . . . . . . . . . . . . . . . . . . . . Mechanic 3 | . . . . . . . . . . 1 . . 1 . . . 1 . . . . . . . . . . . . . . Operator 5 | . 2 . 2 . . . . . . . . . . . . . . . . . . . . . . . . . 1 . . Watcher 12 | . 1 . 5 . . . 2 1 . . . . . . . . . . . . . . . . . . . . . 2 1 Swarmer 70 | . 5 . 12 . . 8 3 . . . . 5 4 . . . 6 . . . 1 . . 5 4 3 . . . 14 . Grunt 94 | . 6 2 4 2 . 3 11 9 . 12 . 5 4 . . . 6 . . . 1 7 . 3 . 2 1 . 5 10 1 Brawler 10 | . . . . . . . 1 . . 4 . . . . . . 4 . . . . 1 . . . . . . . . . Duelist 5 | . . . . 1 . . 1 . . 2 . . . . . . . . . . . . . 1 . . . . . . . Protector 2 | . . . . . . . . 1 . . . . . . . . . . . . . . . . . . . . 1 . . Sentry 26 | . . . 7 . . . 6 3 . 1 . 1 . . . . . . . . 1 1 . 1 1 1 . . 1 2 . Specialist 2 | . . . . . . . . . . . . . . . . . . . . . . . 1 . . . . . . . 1 Hunter 11 | . . . . . . . . . . . . . 2 . 2 . . . . . 2 . . 1 2 . . . 2 . . Programmer 23 | . . . . . . . . 3 . . . . 1 . . . . . . 1 1 . . 2 3 . . . 1 9 2 Behemoth 5 | . . . . . . . . . . . . . . . . . 1 . . . . . . 1 . 2 . . . 1 . Cetus Guard 2 | . . . . . . . . . . . . . . . . . . . . . . . . . . . 2 . . . . Enhanced Grunt 1 | . . . . . . . . . . . . . . . . . 1 . . . . . . . . . . . . . . Lightning 1 | . . . . . . . . . . . . . . . . . . . . . . . . . . . . . 1 . . Samaritan 1 | . . . . . . . . . . 1 . . . . . . . . . . . . . . . . . . . . . Thief 2 | . . . . . . . . . 2 . . . . . . . . . . . . . . . . . . . . . . Best Kill Streak 22 | . 5 1 6 4 . 4 5 8 2 15 . 7 6 . 2 . 5 . . 1 3 3 1 4 9 3 2 . 22 16 3 Combat Bots Only 15 | . 3 1 5 3 . 4 4 6 2 15 . 7 5 . 2 . 5 . . 1 3 3 1 4 4 3 2 . 8 10 3 Max Kills in Single Turn 5 | . 1 1 3 1 . 4 1 2 1 2 . 3 2 . 1 . 3 . . 1 1 1 1 2 5 3 1 . 5 4 2 Gunslinging . | . . . . . . . . . . . . . . . . . . . . . . . . . . . . . . . . Exploded 4 | . . . 2 1 . 4 . 2 . 2 . 3 2 . . . 3 . . . 1 . . 2 4 3 . . 2 4 1 Melee 1 | . . . . . . . . . . . . . . . . . 1 . . . . . . . . . . . 1 1 . Uniques/NPCs Destroyed . | . . . . . . . . . . . . . . . . . . . . . . . . . . . . . . . . Combat | -11 -10 -10 -9 -9 -9 -8 -8 -7 -7 -7 -7 -6 -6 -6 -6 -6 -5 -5 -5 -5 -5 -5 -5 -4 -4 -4 -4 -4 -4 -3 -3 -------- Run | Jun Mat Min Mat Min Exi Min Mat Fac Low Low Zio Pro Fac Low Low Dat Pro Fac Was Fac Upp Upp War Pro Fac Ext Cet Arc Hub Res Qua Damage Taken 24982 | . 427 124 630 181 . 292 919 921 189 1393 . 233 521 . 492 . 575 . . 65 141 242 141 1342 397 1735 177 39 2731 3787 7288 Core 2382 | . 75 20 20 15 . 20 70 106 25 193 . 13 9 . 38 . 49 . . 11 . 9 . 127 49 121 . . 107 143 1162 Absorbed by Shields 1835 | . . . . . . . . . . 51 . 84 132 . 101 . 221 . . 66 129 250 146 62 76 295 36 . . 186 . Reduced by Siege Mode 418 | . . . . . . . . . . . . . . . . . . . . . . . . . 34 . 9 . 146 223 6 Redirected to Core 463 | . . . . . . . . . . . . . . . . . . . . . . . . . . . . . . . 463 Regen/Repaired (Parts) 1193 | . . . 58 . . . . . . . 164 . 45 . . . . . 676 10 . . 240 . . . . . . . . Core Remaining (%) 79 | 100 . 62 . . . 86 87 . . . . 51 . . . . 88 . . . . . . 85 . . . . 75 . . Volleys Fired 679 | . 56 11 85 10 . 10 70 46 7 21 . 16 38 . 14 . 29 1 . 6 11 27 2 30 36 15 7 . 18 85 28 Largest 3 | . 2 2 2 2 . 2 2 2 2 2 . 2 2 . 2 . 2 1 . 2 2 2 2 2 3 3 3 . 3 3 3 Hottest 247 | . 70 64 83 78 . 78 88 96 96 96 . 92 170 . 170 . 170 85 . 198 203 203 203 174 212 220 247 . 247 247 227 Shots Fired 1259 | . 114 21 166 17 . 18 141 82 15 32 . 21 62 . 21 . 41 1 . 11 17 51 4 52 60 35 19 . 36 192 30 Gun 182 | . 114 18 13 . . . . . . . . . . . . . . . . . . . . . . . . . . 37 . Cannon 961 | . . 3 149 14 . 13 141 74 15 21 . 11 56 . 21 . 25 1 . 11 12 51 4 46 58 30 17 . 27 136 25 Launcher 103 | . . . 4 3 . 5 . 8 . 11 . 10 6 . . . 16 . . . 5 . . 6 2 5 2 . 9 6 5 Special 13 | . . . . . . . . . . . . . . . . . . . . . . . . . . . . . . 13 . Kinetic 734 | . 97 21 162 14 . 13 141 74 15 21 . 11 . . . . . . . . . . . 24 18 20 3 . 8 83 9 Thermal 318 | . 17 . . . . . . . . . . . 56 . 21 . 25 1 . 11 12 51 4 22 40 6 . . . 36 16 Explosive 92 | . . . 4 3 . 5 . 8 . 11 . 10 6 . . . 16 . . . . . . 2 2 5 . . 9 6 5 Electromagnetic 65 | . . . . . . . . . . . . . . . . . . . . . 5 . . 4 . 4 16 . 19 17 . Entropic 37 | . . . . . . . . . . . . . . . . . . . . . . . . . . . . . . 37 . Robot Hit Streak 21 | . 10 8 15 3 . 3 11 13 4 8 . 14 21 . 11 . 9 . . 7 7 11 13 15 11 13 11 . 11 9 7 Robot Miss Streak 8 | . 5 4 8 3 . 3 6 3 3 3 . 2 2 . 2 . 1 . . 1 1 2 . 2 1 2 2 . 5 4 2 Penetration Max 1 | . . . . . . . . 1 . . . . . . . . . . . . . . . . . . . . . 1 . Secondary Targets 3 | . 2 . . . . . . . . . . . . . . . . . . . . . . . . . . . . 1 . Max Gunslinging Chain 1 | . 1 . . . . . . . . . . . . . . . . . . . . . . . . . . . . 1 . Capacitor 6 | . . . . . . . . . . . . . . . . . . . . . . . . . . . . . . . 6 Shots Hit Robots 871 | . 63 15 99 7 . 7 113 72 9 27 2 14 37 . 12 . 29 . 57 7 9 37 4 41 25 22 11 . 22 120 10 Core Hits 680 | . 36 7 61 7 . 16 97 52 2 51 1 31 22 . 2 . 45 . 4 2 7 14 . 20 29 17 9 . 54 73 21 Critical Kills 7 | . . . . . . . . . . . . . 1 . 1 . . . . . . 3 1 . . . . . . 1 . Critical Parts Destroyed 9 | . 1 . 1 . . . . . . . . . . . . . . . . . . . . . . . . . . 7 . Critical Strikes 52 | . 2 . 5 . . . 4 5 . 1 . 1 1 . 1 . 1 . . . . 3 1 7 4 2 . . . 14 . Burn 1 | . 1 . . . . . . . . . . . . . . . . . . . . . . . . . . . . . . Meltdown 7 | . . . . . . . . . . . . . 1 . 1 . . . . . . 3 1 . . . . . . 1 . Destroy 2 | . 1 . 1 . . . . . . . . . . . . . . . . . . . . . . . . . . . . Blast 33 | . . . 4 . . . 4 5 . 1 . 1 . . . . . . . . . . . 7 4 2 . . . 5 . Impale 2 | . . . . . . . . . . . . . . . . . 1 . . . . . . . . . . . . 1 . Detonate 7 | . . . . . . . . . . . . . . . . . . . . . . . . . . . . . . 7 . Melee Attacks 104 | . . . . . . . . 12 2 11 3 . 1 . . . 3 . 57 . . . . 9 . 3 . . . 3 . Impact . | . . . . . . . . . . . . . . . . . . . . . . . . . . . . . . . . Slashing 86 | . . . . . . . . 12 2 11 3 . 1 . . . . . 57 . . . . . . . . . . . . Piercing 18 | . . . . . . . . . . . . . . . . . 3 . . . . . . 9 . 3 . . . 3 . Sneak Attacks 13 | . . . . . . . . 7 . 3 . . 1 . . . . . . . . . . . . . . . . 2 . Combat Hostiles . | . . . . . . . . . . . . . . . . . . . . . . . . . . . . . . . . Follow-up Attacks . | . . . . . . . . . . . . . . . . . . . . . . . . . . . . . . . . Damage Inflicted 41986 | . 697 171 2430 357 . 648 2162 2842 246 2756 128 1595 1825 . 366 . 3005 . 2380 256 489 1372 147 1909 1401 1424 537 . 3795 7746 1302 Guns 2269 | . 697 124 62 . . . . . . . . . . . . . . . . . . . . . . . . . . 1386 . Cannons 18195 | . . 47 1866 170 . 86 2162 1650 214 306 . 215 1038 . 366 . 595 . . 245 279 1372 147 1327 914 780 368 . 559 3285 204 Explosions 17366 | . . . 498 187 . 562 . 663 . 2051 . 1380 720 . . . 2312 . . . 210 . . 426 487 629 169 . 3184 2854 1034 Melee 3920 | . . . . . . . . 529 32 399 128 . 67 . . . 98 . 2380 . . . . 156 . . . . . 131 . Ramming 236 | . . . 4 . . . . . . . . . . . . . . . . 11 . . . . . 15 . . 52 90 64 Kinetic 11277 | . 559 171 1928 170 . 86 2162 1650 214 306 . 215 . . . . . . . . . . . 558 336 487 . . 132 2099 204 Thermal 7717 | . 138 . . . . 98 . . . . . . 1038 . 366 . 595 . . 245 279 1372 147 769 607 171 . . . 1892 . Explosive 14866 | . . . 498 187 . 464 . 663 . 2051 . 1380 720 . . . 2312 . . . . . . 225 305 629 . . 2595 1803 1034 Electromagnetic 2584 | . . . . . . . . . . . . . . . . . . . . . 210 . . 201 153 122 537 . 1016 345 . Impact . | . . . . . . . . . . . . . . . . . . . . . . . . . . . . . . . . Slashing 3535 | . . . . . . . . 529 32 399 128 . 67 . . . . . 2380 . . . . . . . . . . . . Piercing 385 | . . . . . . . . . . . . . . . . . 98 . . . . . . 156 . . . . . 131 . Entropic 1386 | . . . . . . . . . . . . . . . . . . . . . . . . . . . . . . 1386 . Highest Corruption 18 | . 2 12 . . . . 2 1 1 6 2 . . . . . . . . 1 . . . 2 1 1 1 1 18 9 16 Average Corruption 2 | . 2 6 . . . . 2 1 1 3 2 . . . . . . . . 1 . . . 1 1 1 1 1 2 5 7 Corruption Purged 11 | . . . . . . . . . 1 4 . . . . . . . . . 1 . . . . . . . . . 5 . Corruption Blocked . | . . . . . . . . . . . . . . . . . . . . . . . . . . . . . . . . Effects 157 | . 22 10 . . . . 15 3 3 24 2 . . . . . . . . 1 . . . 15 . 8 1 1 3 28 21 Message Errors 37 | . 8 1 . . . . 3 . . 8 . . . . . . . . . . . . . 3 . 3 . . 1 2 8 Matter Fused 35 | . 4 3 . . . . 2 2 . 3 2 . . . . . . . . 1 . . . 2 . 1 . . 2 7 6 Heat Flow Errors 15 | . . . . . . . 2 1 1 3 . . . . . . . . . . . . . 3 . 1 1 . . 2 1 Energy Discharges 17 | . 2 2 . . . . 2 . . 5 . . . . . . . . . . . . . 2 . 2 . . . 1 1 Parts Rejected 3 | . . . . . . . . . . . . . . . . . . . . . . . . . . . . . . 2 1 Parts Fused 1 | . . . . . . . . . . . . . . . . . . . . . . . . . . . . . . 1 . Data Loss (minor) 25 | . 2 1 . . . . 3 . . 2 . . . . . . . . . . . . . 3 . . . 1 . 10 3 Data Loss (major) 7 | . 3 1 . . . . . . . 1 . . . . . . . . . . . . . . . 1 . . . 1 . Misfires 8 | . 2 . . . . . 2 . 2 1 . . . . . . . . . . . . . 1 . . . . . . . Alerts 6 | . 1 1 . . . . . . . 1 . . . . . . . . . . . . . 1 . . . . . 1 1 Weapon Failures 3 | . . 1 . . . . 1 . . . . . . . . . . . . . . . . . . . . . . 1 . Overload Shots . | . . . . . . . . . . . . . . . . . . . . . . . . . . . . . . . . Overflow Damage 1670 | . . . 107 3 . 17 27 48 13 105 8 40 119 . 1 . 112 . 1 . 22 26 . 129 99 25 . . 101 606 61 Projectiles 580 | . . . 52 3 . . 27 4 13 . . . 70 . 1 . 30 . . . . 26 . 81 26 25 . . . 222 . Explosions 848 | . . . 55 . . 17 . . . 30 . 40 22 . . . 82 . . . 22 . . 48 73 . . . 101 297 61 Melee 242 | . . . . . . . . 44 . 75 8 . 27 . . . . . 1 . . . . . . . . . . 87 . Knockbacks 94 | . . 2 12 2 . 1 38 9 3 1 . . . . . . . . . . . . . 2 1 5 . . . 14 4 Impact 1 | . . . . . . . . . . . . . . . . . . . . . . . . . . . . . . . 1 Kinetic 88 | . . 2 12 2 . 1 36 8 3 1 . . . . . . . . . . . . . 2 1 4 . . . 13 3 Secondary 5 | . . . . . . . 2 1 . . . . . . . . . . . . . . . . . 1 . . . 1 . Self-Inflicted Damage 727 | . . . 21 . . 63 . 84 . 187 . . . . . . 77 . . . 10 . . . . . . . 27 181 77 Shots 21 | . . . 2 . . 2 . 3 . 4 . . . . . . 2 . . . 1 . . . . . . . 1 5 1 Rammed 9 | . . . 1 . . . . . . . . . . . . . . . . 1 . . . . . . . . 2 2 3 Targets Rammed 12 | . . . 1 . . . . . . . . . . . . . . . . 1 . . . . . 1 . . 3 3 3 Kicked . | . . . . . . . . . . . . . . . . . . . . . . . . . . . . . . . . Crushed 3 | . . . . . . . . . . . . . . . . . . . . . . . . . . 1 . . 1 1 . Highest Temperature 367 | . 145 50 135 138 . 157 260 243 140 266 . 184 164 . 104 . 144 . . 171 144 257 30 226 96 189 298 . 298 367 365 Average Temperature 64 | . 42 22 30 62 . 66 81 69 48 98 . 54 45 . 44 . 51 . . 61 50 110 20 29 32 53 117 . 108 90 88 Received Heat Transfer 5327 | . 165 63 141 51 . 117 396 303 . 381 . 72 178 . 6 . 70 . . . 21 98 19 151 . 200 8 9 183 706 1989 Effects 5 | . . . . . . . 1 . . 3 . . . . . . . . . . . . . . . . . . . 1 . Energy Bleed 1 | . . . . . . . . . . . . . . . . . . . . . . . . . . . . . . 1 . Interference 4 | . . . . . . . 1 . . 3 . . . . . . . . . . . . . . . . . . . . . Siege Activations 12 | . . . . . . . . . . . . . . . . . . . . . . . . . 2 . 2 . 2 5 1 Total Turns 248 | . . . . . . . . . . . . . . . . . . . . . . . . . 35 . 20 . 45 142 6 Longest Duration 64 | . . . . . . . . . . . . . . . . . . . . . . . . . 33 . 14 . 33 64 6 Robots Corrupted 1 | . . . . . . . . . . . . . . . . . . . . . . . . 1 . . . . . . . Combat Hostiles 1 | . . . . . . . . . . . . . . . . . . . . . . . . 1 . . . . . . . Parts Fried 15 | . . . . . . . . . . . . . . . . . . . . . 1 . . 2 . . 3 . 4 5 . Impact Corruptions 1 | . . . . . . . . . . . . . . . . . . . . . . . . . . . . . . 1 . Robots Melted 7 | . . . . . . . . . . . . . 1 . 1 . . . . . . 3 1 . . . . . . 1 . Combat Hostiles 6 | . . . . . . . . . . . . . . . 1 . . . . . . 3 1 . . . . . . 1 . Parts Melted 16 | . . . . . . . . . . . . . 5 . . . . . . 1 3 5 1 . . . . . . 1 . Heat Transferred 7965 | . 481 . . . . 150 . . . . . . 1258 . 444 . 740 . . 259 259 1369 148 666 642 185 . . . 1364 . Parts Sabotaged . | . . . . . . . . . . . . . . . . . . . . . . . . . . . . . . . . Parts Stolen 1 | . . . . . . . . . 1 . . . . . . . . . . . . . . . . . . . . . . Parts Stripped . | . . . . . . . . . . . . . . . . . . . . . . . . . . . . . . . . Power Chain Reactions 2 | . . . . . . . . . . . . . . . . . . . . . . . . . 2 . . . . . . Missiles Intercepted . | . . . . . . . . . . . . . . . . . . . . . . . . . . . . . . . . Alert | -11 -10 -10 -9 -9 -9 -8 -8 -7 -7 -7 -7 -6 -6 -6 -6 -6 -5 -5 -5 -5 -5 -5 -5 -4 -4 -4 -4 -4 -4 -3 -3 ------- Run | Jun Mat Min Mat Min Exi Min Mat Fac Low Low Zio Pro Fac Low Low Dat Pro Fac Was Fac Upp Upp War Pro Fac Ext Cet Arc Hub Res Qua Peak Influence 1314 | . 147 85 368 113 . 131 234 460 . . . . 323 . . . . 233 81 928 . . . . 276 513 444 331 806 1314 827 Initial 733 | . . . . 12 . . 45 23 . . . . 35 . . . . 231 81 19 . . . . . 135 112 177 101 417 733 Average 197 | . 44 19 166 31 . 76 101 117 . . . . 134 . . . . 231 47 264 . . . . 128 135 273 220 264 728 762 Maximum Alert Level 4 | . . . 1 . . . 1 2 . . . . 1 . . . . 1 . 3 . . . . 1 2 2 1 3 4 3 Low Security (%) 68 | 100 100 100 60 100 . 100 87 84 . . . . 68 . . . . . 100 65 . . . . 56 68 16 56 47 . . Level 1 15 | . . . 39 . . . 12 8 . . . . 31 . . . . 100 . 3 . . . . 43 28 53 43 35 . . Level 2 6 | . . . . . . . . 7 . . . . . . . . . . . 9 . . . . . 2 30 . 7 42 12 Level 3 9 | . . . . . . . . . . . . . . . . . . . . 21 . . . . . . . . 9 50 87 Level 4 . | . . . . . . . . . . . . . . . . . . . . . . . . . . . . . . 7 . Level 5 . | . . . . . . . . . . . . . . . . . . . . . . . . . . . . . . . . High Security . | . . . . . . . . . . . . . . . . . . . . . . . . . . . . . . . . Max Security . | . . . . . . . . . . . . . . . . . . . . . . . . . . . . . . . . Squads Dispatched 32 | . 1 1 1 . . . . 5 . 1 . . 3 . . . 1 . . 4 . . . . 1 1 . . 4 6 3 Investigation 6 | . . 1 1 . . . . 1 . . . . . . . . . . . 1 . . . . . 1 . . 1 . . Extermination 11 | . . . . . . . . 3 . . . . 1 . . . . . . 1 . . . . 1 . . . 1 3 1 Reinforcement 10 | . 1 . . . . . . 1 . . . . 2 . . . . . . 1 . . . . . . . . 1 2 2 Assault 4 | . . . . . . . . . . 1 . . . . . . 1 . . 1 . . . . . . . . 1 . . Garrison 1 | . . . . . . . . . . . . . . . . . . . . . . . . . . . . . . 1 . Intercept . | . . . . . . . . . . . . . . . . . . . . . . . . . . . . . . . . Searches Triggered . | . . . . . . . . . . . . . . . . . . . . . . . . . . . . . . . . Data Miner Redirects 2 | . . . . . . . . . . . . . . . . . . . . 1 . . . . . 1 . . . . . Construction Impeded 3 | . . . . . . . . . . . . . 1 . . . . . . . . . . . . . . . . 1 1 Haulers Reinforced . | . . . . . . . . . . . . . . . . . . . . . . . . . . . . . . . . Active Scanning Responses . | . . . . . . . . . . . . . . . . . . . . . . . . . . . . . . . . Cargo Convoy Interrupts 1 | . . . . . . . . 1 . . . . . . . . . . . . . . . . . . . . . . . Stealth | -11 -10 -10 -9 -9 -9 -8 -8 -7 -7 -7 -7 -6 -6 -6 -6 -6 -5 -5 -5 -5 -5 -5 -5 -4 -4 -4 -4 -4 -4 -3 -3 --------- Run | Jun Mat Min Mat Min Exi Min Mat Fac Low Low Zio Pro Fac Low Low Dat Pro Fac Was Fac Upp Upp War Pro Fac Ext Cet Arc Hub Res Qua Distress Signals 25 | . 1 . 4 . . . 3 2 . . . . 2 . . . . . . 1 . . 1 . . . 1 . 1 5 4 Communications Jammed 34 | . . . . . . . . . . . . . . . . . . . . 34 . . . . . . . . . . . Distress Signals 34 | . . . . . . . . . . . . . . . . . . . . 34 . . . . . . . . . . . Times Spotted 436 | . 21 2 40 5 . 11 30 22 5 20 . 9 19 . 5 . 28 . 1 15 13 12 16 15 8 21 12 10 20 53 23 Peak Tracking Total 12 | . 4 2 5 3 . 4 5 6 2 9 . 7 6 . 3 . 7 . 1 5 3 5 11 4 3 5 5 8 10 10 12 Tactical Retreats 20 | . 3 1 . . . 1 1 . 1 . . 2 1 . . . 1 . . 2 . 2 1 1 . 1 . . . 1 1 Traps | -11 -10 -10 -9 -9 -9 -8 -8 -7 -7 -7 -7 -6 -6 -6 -6 -6 -5 -5 -5 -5 -5 -5 -5 -4 -4 -4 -4 -4 -4 -3 -3 ------- Run | Jun Mat Min Mat Min Exi Min Mat Fac Low Low Zio Pro Fac Low Low Dat Pro Fac Was Fac Upp Upp War Pro Fac Ext Cet Arc Hub Res Qua Traps Triggered 12 | . 1 . . . . . 1 1 . . . . 1 . . . . 1 . 2 . . . . . 2 . . 1 1 1 Indirectly 1 | . . . . . . . . . . . . . . . . . . . . . . . . . . . . . 1 . . Trap Hack Attempts . | . . . . . . . . . . . . . . . . . . . . . . . . . . . . . . . . Triggered . | . . . . . . . . . . . . . . . . . . . . . . . . . . . . . . . . Disarmed . | . . . . . . . . . . . . . . . . . . . . . . . . . . . . . . . . Reprogrammed . | . . . . . . . . . . . . . . . . . . . . . . . . . . . . . . . . Reused . | . . . . . . . . . . . . . . . . . . . . . . . . . . . . . . . . Traps Extracted . | . . . . . . . . . . . . . . . . . . . . . . . . . . . . . . . . Installed . | . . . . . . . . . . . . . . . . . . . . . . . . . . . . . . . . Triggered 14 | . . . . . . . . 1 . . . 1 . . . . . . . . . . 12 . . . . . . . . Exploded 3 | . . . . . . . 3 . . . . . . . . . . . . . . . . . . . . . . . . Machines | -11 -10 -10 -9 -9 -9 -8 -8 -7 -7 -7 -7 -6 -6 -6 -6 -6 -5 -5 -5 -5 -5 -5 -5 -4 -4 -4 -4 -4 -4 -3 -3 ---------- Run | Jun Mat Min Mat Min Exi Min Mat Fac Low Low Zio Pro Fac Low Low Dat Pro Fac Was Fac Upp Upp War Pro Fac Ext Cet Arc Hub Res Qua Machines Disabled 49 | . . . 4 . . 2 1 6 2 2 . 2 2 . . . 1 . . 6 . 1 . . 3 . 1 2 2 6 6 Max in Single Turn 2 | . . . 1 . . 2 1 2 1 2 . 1 2 . . . 1 . . 1 . 1 . . 1 . 1 . 2 1 1 Network Hub 1 | . . . . . . . . . . . . . . . . . . . . . . . . . . . . . 1 . . Energy Cycler 1 | . . . . . . . . . . . . . . . . . . . . . . . . . . 1 . . . . . Machines Repaired . | . . . . . . . . . . . . . . . . . . . . . . . . . . . . . . . . Machines Sabotaged . | . . . . . . . . . . . . . . . . . . . . . . . . . . . . . . . . Overloaded Fab Kills . | . . . . . . . . . . . . . . . . . . . . . . . . . . . . . . . . Hacking | -11 -10 -10 -9 -9 -9 -8 -8 -7 -7 -7 -7 -6 -6 -6 -6 -6 -5 -5 -5 -5 -5 -5 -5 -4 -4 -4 -4 -4 -4 -3 -3 --------- Run | Jun Mat Min Mat Min Exi Min Mat Fac Low Low Zio Pro Fac Low Low Dat Pro Fac Was Fac Upp Upp War Pro Fac Ext Cet Arc Hub Res Qua Machines Accessed 78 | . 5 2 12 . 1 . 6 6 . . . 1 9 . 1 4 . 1 . 6 1 2 4 . 2 4 2 . . 6 3 Terminals 46 | . 5 . 9 . . . 5 4 . . . 1 5 . . . . . . 5 . . . . . 4 2 . . 4 2 Fabricators 4 | . . . . . . . . 1 . . . . . . . . . 1 . . . . . . 1 . . . . 1 . Repair Stations 5 | . . . 1 . . . . . . . . . 2 . . . . . . 1 . . . . . . . . . 1 . Recycling Units 3 | . . . . . . . 1 1 . . . . . . . . . . . . . . . . 1 . . . . . . Scanalyzers 3 | . . . 2 . . . . . . . . . 1 . . . . . . . . . . . . . . . . . . Garrison Access 2 | . . . . . . . . . . . . . 1 . . . . . . . . . . . . . . . . . 1 Total Hacks 211 | . 16 2 34 . 4 . 14 11 . . . 5 25 . 1 29 . 2 . 14 1 2 6 . 3 13 7 . . 17 5 Successful 117 | . 5 2 20 . 4 . 9 6 . . . 5 11 . 1 29 . 1 . 3 1 2 6 . . 5 3 . . 3 1 Failed 94 | . 11 . 14 . . . 5 5 . . . . 14 . . . . 1 . 11 . . . . 3 8 4 . . 14 4 Catastrophic 32 | . 6 . 2 . . . 2 1 . . . . 6 . . . . 1 . 4 . . . . 2 . . . . 5 3 Database Lockouts . | . . . . . . . . . . . . . . . . . . . . . . . . . . . . . . . . Manual 95 | . 14 . 20 . . . 11 8 . . . . 12 . . . 1 1 . 8 . . 1 . 2 5 1 . . 11 . Terminals 130 | . 16 . 24 . . . 11 9 . . . 5 15 . . . . . . 12 . . . . . 13 7 . . 14 4 Fabricators 5 | . . . . . . . . 1 . . . . . . . . . 2 . . . . . . 1 . . . . 1 . Repair Stations 13 | . . . 4 . . . . . . . . . 5 . . . . . . 2 . . . . . . . . . 2 . Recycling Units 6 | . . . . . . . 3 1 . . . . . . . . . . . . . . . . 2 . . . . . . Scanalyzers 8 | . . . 6 . . . . . . . . . 2 . . . . . . . . . . . . . . . . . . Garrison Access 4 | . . . . . . . . . . . . . 3 . . . . . . . . . . . . . . . . . 1 Terminal Hacks 83 | . 5 2 9 . 4 . 5 2 . . . 5 3 . 1 29 . . . 1 1 2 6 . . 3 3 . . 1 1 Record 30 | . . . . . 4 . . . . . . 5 . . . 11 . . . . . 1 5 . . . 3 . . . 1 Part Schematic 12 | . 1 . . . . . . . . . . . . . . 11 . . . . . . . . . . . . . . . Robot Schematic 4 | . . . . . . . . . . . . . . . . 4 . . . . . . . . . . . . . . . Robot Analysis 3 | . . . 2 . . . 1 . . . . . . . . . . . . . . . . . . . . . . . . Prototype ID Bank 4 | . . . 1 . . . . . . . . . . . . 3 . . . . . . . . . . . . . . . Open Door 6 | . . 2 . . . . . . . . . . . . 1 . . . . . 1 1 1 . . . . . . . . Branch Access Points 6 | . 1 . 1 . . . 1 1 . . . . 1 . . . . . . 1 . . . . . . . . . . . Terminal Index 1 | . . . . . . . . 1 . . . . . . . . . . . . . . . . . . . . . . . Scanalyzer Index 1 | . . . 1 . . . . . . . . . . . . . . . . . . . . . . . . . . . . Alert Level 1 | . . . . . . . . . . . . . 1 . . . . . . . . . . . . . . . . . . Unreport Threat 14 | . 3 . 4 . . . 3 . . . . . 1 . . . . . . . . . . . . 3 . . . . . Locate Traps 1 | . . . . . . . . . . . . . . . . . . . . . . . . . . . . . . 1 . Fabricator Hacks 1 | . . . . . . . . . . . . . . . . . . 1 . . . . . . . . . . . . . Network Status 1 | . . . . . . . . . . . . . . . . . . 1 . . . . . . . . . . . . . Repair Station Hacks 8 | . . . 4 . . . . . . . . . 3 . . . . . . 1 . . . . . . . . . . . Scan Component 5 | . . . 2 . . . . . . . . . 2 . . . . . . 1 . . . . . . . . . . . Repair 3 | . . . 2 . . . . . . . . . 1 . . . . . . . . . . . . . . . . . . Recycling Unit Hacks . | . . . . . . . . . . . . . . . . . . . . . . . . . . . . . . . . Scanalyzer 6 | . . . 4 . . . . . . . . . 2 . . . . . . . . . . . . . . . . . . Insert Component 4 | . . . 3 . . . . . . . . . 1 . . . . . . . . . . . . . . . . . . Analyze 2 | . . . 1 . . . . . . . . . 1 . . . . . . . . . . . . . . . . . . Garrison Access Hacks . | . . . . . . . . . . . . . . . . . . . . . . . . . . . . . . . . Unauthorized Hacks 19 | . . . 3 . . . 4 4 . . . . 3 . . . . . . 1 . . . . . 2 . . . 2 . Terminals 15 | . . . 3 . . . 1 3 . . . . 3 . . . . . . 1 . . . . . 2 . . . 2 . Track 2 | . . . . . . . . 1 . . . . 1 . . . . . . . . . . . . . . . . . . Botnet 13 | . . . 3 . . . 1 2 . . . . 2 . . . . . . 1 . . . . . 2 . . . 2 . Fabricators 1 | . . . . . . . . 1 . . . . . . . . . . . . . . . . . . . . . . . Download 1 | . . . . . . . . 1 . . . . . . . . . . . . . . . . . . . . . . . Repair Stations . | . . . . . . . . . . . . . . . . . . . . . . . . . . . . . . . . Recycling Units 3 | . . . . . . . 3 . . . . . . . . . . . . . . . . . . . . . . . . Monitor 1 | . . . . . . . 1 . . . . . . . . . . . . . . . . . . . . . . . . Reject 1 | . . . . . . . 1 . . . . . . . . . . . . . . . . . . . . . . . . Mask 1 | . . . . . . . 1 . . . . . . . . . . . . . . . . . . . . . . . . Scanalyzers . | . . . . . . . . . . . . . . . . . . . . . . . . . . . . . . . . Garrison Access . | . . . . . . . . . . . . . . . . . . . . . . . . . . . . . . . . Data Cores Recovered 2 | . . . 2 . . . . . . . . . . . . . . . . . . . . . . . . . . . . Used . | . . . . . . . . . . . . . . . . . . . . . . . . . . . . . . . . Hacking Detections 58 | . 4 . 10 . . . 5 5 . . . 1 9 . . . . 1 . 6 . . . . 2 4 2 . . 6 3 Full Trace Events 5 | . 3 . 1 . . . . . . . . . . . . . . . . 1 . . . . . . . . . . . Feedback Events 1 | . . . 1 . . . . . . . . . . . . . . . . . . . . . . . . . . . . Hackware Fried 1 | . . . 1 . . . . . . . . . . . . . . . . . . . . . . . . . . . . Feedback Blocked . | . . . . . . . . . . . . . . . . . . . . . . . . . . . . . . . . Robot Schematics Acquired 7 | . . . . . . . . . . . 3 . . . . 4 . . . . . . . . . . . . . . . Robots Built . | . . . . . . . . . . . . . . . . . . . . . . . . . . . . . . . . Authchips . | . . . . . . . . . . . . . . . . . . . . . . . . . . . . . . . . Time . | . . . . . . . . . . . . . . . . . . . . . . . . . . . . . . . . Total Robot Build Rating . | . . . . . . . . . . . . . . . . . . . . . . . . . . . . . . . . Part Schematics Acquired 28 | . 1 . . . . . . 1 . . 14 . 1 . . 11 . . . . . . . . . . . . . . . Parts Built . | . . . . . . . . . . . . . . . . . . . . . . . . . . . . . . . . Authchips . | . . . . . . . . . . . . . . . . . . . . . . . . . . . . . . . . Time . | . . . . . . . . . . . . . . . . . . . . . . . . . . . . . . . . Total Part Build Rating . | . . . . . . . . . . . . . . . . . . . . . . . . . . . . . . . . Parts Repaired 3 | . . . 2 . . . . . . . . . 1 . . . . . . . . . . . . . . . . . . Time 162 | . . . 140 . . . . . . . . . 22 . . . . . . . . . . . . . . . . . . Parts Recycled . | . . . . . . . . . . . . . . . . . . . . . . . . . . . . . . . . Recycled Matter . | . . . . . . . . . . . . . . . . . . . . . . . . . . . . . . . . Retrieved Matter . | . . . . . . . . . . . . . . . . . . . . . . . . . . . . . . . . Retrieved Components . | . . . . . . . . . . . . . . . . . . . . . . . . . . . . . . . . Parts Scanalyzed 2 | . . . 1 . . . . . . . . . 1 . . . . . . . . . . . . . . . . . . Part Schematics Acquired 1 | . . . . . . . . . . . . . 1 . . . . . . . . . . . . . . . . . . Parts Damaged 1 | . . . . . . . . . . . . . 1 . . . . . . . . . . . . . . . . . . Bothacking | -11 -10 -10 -9 -9 -9 -8 -8 -7 -7 -7 -7 -6 -6 -6 -6 -6 -5 -5 -5 -5 -5 -5 -5 -4 -4 -4 -4 -4 -4 -3 -3 ------------ Run | Jun Mat Min Mat Min Exi Min Mat Fac Low Low Zio Pro Fac Low Low Dat Pro Fac Was Fac Upp Upp War Pro Fac Ext Cet Arc Hub Res Qua Used RIF Installer . | . . . . . . . . . . . . . . . . . . . . . . . . . . . . . . . . Robots Hacked . | . . . . . . . . . . . . . . . . . . . . . . . . . . . . . . . . Non-combat . | . . . . . . . . . . . . . . . . . . . . . . . . . . . . . . . . Combat . | . . . . . . . . . . . . . . . . . . . . . . . . . . . . . . . . Robot Hacks Applied . | . . . . . . . . . . . . . . . . . . . . . . . . . . . . . . . . Relay Couplers Released . | . . . . . . . . . . . . . . . . . . . . . . . . . . . . . . . . Fabnet Peak Effective % . | . . . . . . . . . . . . . . . . . . . . . . . . . . . . . . . . Robots Rewired 14 | . . . . . . . . . . . . . . . . . 2 . . . . . 5 . . 7 . . . . . Allies Hacked 1 | . . . . . . . . . . . . . . . . . . . . 1 . . . . . . . . . . . Hacks Repelled . | . . . . . . . . . . . . . . . . . . . . . . . . . . . . . . . . Allies | -11 -10 -10 -9 -9 -9 -8 -8 -7 -7 -7 -7 -6 -6 -6 -6 -6 -5 -5 -5 -5 -5 -5 -5 -4 -4 -4 -4 -4 -4 -3 -3 -------- Run | Jun Mat Min Mat Min Exi Min Mat Fac Low Low Zio Pro Fac Low Low Dat Pro Fac Was Fac Upp Upp War Pro Fac Ext Cet Arc Hub Res Qua Total Allies 46 | . . . . 2 . . . . . . . . 3 . . . 3 . 20 . . . 5 . . 13 . . . . . Largest Group 20 | . . . . 2 2 . . . . . . . 3 . . . 3 . 20 19 10 . 5 1 . 6 6 3 . . . Highest-Rated Group 726 | . . . . 43 43 . . . . . . . 93 . . . 154 . 726 694 386 . 264 64 . 378 378 249 . . . Highest-Rated Ally 159 | . . . . 31 31 . . . . . . . 31 . . . 96 . 50 50 46 . 68 64 . 159 159 152 . . . Total Orders 21 | . . . . . . . . . . . . . . . . . . . . . . . . 6 . . . . . 8 7 EXPLORE 15 | . . . . . . . . . . . . . . . . . . . . . . . . 5 . . . . . 6 4 RETURN 6 | . . . . . . . . . . . . . . . . . . . . . . . . 1 . . . . . 2 3 Ally Attacks 406 | . . . . 2 . . . . . . . . 29 . . . 37 . 35 114 40 . 27 . . 75 28 19 . . . Total Damage 12465 | . . . . 43 . . . . . . . . 371 . . . 1159 . 1476 3520 1018 . 1517 . . 1897 893 571 . . . Kills 76 | . . . . 2 . . . . . . . . 4 . . . 6 . 3 22 9 . 6 . . 11 8 5 . . . Allies Corrupted 3 | . . . . . . . . . . . . . . . . . . . . 3 . . . . . . . . . . . Allies Melted 1 | . . . . . . . . . . . . . . . . . . . . . . . 1 . . . . . . . . Intel | -11 -10 -10 -9 -9 -9 -8 -8 -7 -7 -7 -7 -6 -6 -6 -6 -6 -5 -5 -5 -5 -5 -5 -5 -4 -4 -4 -4 -4 -4 -3 -3 ------- Run | Jun Mat Min Mat Min Exi Min Mat Fac Low Low Zio Pro Fac Low Low Dat Pro Fac Was Fac Upp Upp War Pro Fac Ext Cet Arc Hub Res Qua Robot Analysis Total 3 | . . . 2 . . . 1 . . . . . . . . . . . . . . . . . . . . . . . . Derelict Logs Recovered 19 | . . 2 . 1 . . . . . 3 1 2 . 1 2 . 2 . . . 1 2 . 2 . . . . . . . Drone Launches 22 | . . . . . . . . . . . . . . . . . . . . . . . . 5 . . . . . 11 6 Drone Recoveries 20 | . . . . . . . . . . . . . . . . . . . . . . . . 3 . . . . . 11 6 Exploration | -11 -10 -10 -9 -9 -9 -8 -8 -7 -7 -7 -7 -6 -6 -6 -6 -6 -5 -5 -5 -5 -5 -5 -5 -4 -4 -4 -4 -4 -4 -3 -3 ------------- Run | Jun Mat Min Mat Min Exi Min Mat Fac Low Low Zio Pro Fac Low Low Dat Pro Fac Was Fac Upp Upp War Pro Fac Ext Cet Arc Hub Res Qua Turns Passed 28859 | 56 1412 542 1987 1250 318 997 1203 1234 713 1202 2119 1670 1117 219 654 128 799 176 796 813 1357 1228 980 1350 762 1053 262 88 283 1428 663 Spaces Moved 14378 | 42 791 306 923 565 144 446 590 551 465 485 872 645 571 136 381 81 412 98 406 480 845 723 582 762 344 519 116 49 122 624 302 Core 1 | 1 . . . . . . . . . . . . . . . . . . . . . . . . . . . . . . . Treads 7706 | . 684 306 578 . . . . . . 19 . 259 25 . . . . . 367 480 845 723 582 762 344 519 116 49 122 624 302 Legs . | . . . . . . . . . . . . . . . . . . . . . . . . . . . . . . . . Wheels 6671 | 41 107 . 345 565 144 446 590 551 465 466 872 386 546 136 381 81 412 98 39 . . . . . . . . . . . . Hover . | . . . . . . . . . . . . . . . . . . . . . . . . . . . . . . . . Flight . | . . . . . . . . . . . . . . . . . . . . . . . . . . . . . . . . Fastest Speed 50 | 50 100 160 140 140 215 215 135 145 145 145 230 230 155 160 160 160 160 160 155 155 155 155 155 155 160 156 156 166 166 160 160 Average Speed 174 | 98 151 160 160 211 215 215 154 175 145 223 239 249 163 160 160 160 160 167 157 155 155 155 155 155 165 163 174 166 166 161 163 Slowest Speed 305 | 100 160 160 215 215 215 215 230 245 145 245 260 260 238 160 160 160 240 175 242 155 155 155 155 232 166 166 240 166 166 166 305 Overloaded Moves . | . . . . . . . . . . . . . . . . . . . . . . . . . . . . . . . . Propulsion Burnouts . | . . . . . . . . . . . . . . . . . . . . . . . . . . . . . . . . Robots Hopped . | . . . . . . . . . . . . . . . . . . . . . . . . . . . . . . . . Cave-ins Triggered . | . . . . . . . . . . . . . . . . . . . . . . . . . . . . . . . . Exploration Rate (%) 61 | 3 98 81 91 91 48 90 70 19 59 76 82 82 21 34 66 74 60 3 97 18 95 84 79 92 13 83 66 76 27 25 63 Regions Visited 31 Branch Regions 21 Pre-discovered Areas 4 | . . . . . 1 . . . . . 1 1 . . . 1 . . . . . . . . . . . . . . . Known Exits Taken 10 | . 1 . 1 . . . . 1 . . . . 1 . . . . . . 1 1 . . 1 1 . . . 1 1 . Unknown Exits Taken 19 | 1 . 1 . 1 1 1 1 . 1 1 1 1 . 1 1 1 1 . . . . 1 1 . . 1 1 1 . . . Scrap Searched 30 | . . 2 . 2 . 1 . . 4 1 4 5 . . . . 2 . . . 3 4 . 2 . . . . . . . Spaces Dug 189 | . . . 27 . . 13 . 4 . 15 . 11 17 . 3 . 59 1 . . . 1 . 7 9 17 . . . . 5 Terrain Destroyed 1341 | . . . 50 31 . 61 1 72 8 126 . 90 72 . 9 . 158 1 . 1 3 13 . 37 63 61 2 . 233 185 64 Melee 2 | . . . . . . . . 2 . . . . . . . . . . . . . . . . . . . . . . . Projectile 263 | . . . 13 2 . 3 1 14 8 4 . 3 18 . 9 . 2 1 . 1 3 13 . 19 34 6 2 . 4 87 16 AOE 1076 | . . . 37 29 . 58 . 56 . 122 . 87 54 . . . 156 . . . . . . 18 29 55 . . 229 98 48 Terrain Rammed . | . . . . . . . . . . . . . . . . . . . . . . . . . . . . . . . . Walls Destroyed . | . . . . . . . . . . . . . . . . . . . . . . . . . . . . . . . . Machines Disabled . | . . . . . . . . . . . . . . . . . . . . . . . . . . . . . . . . Actions | -11 -10 -10 -9 -9 -9 -8 -8 -7 -7 -7 -7 -6 -6 -6 -6 -6 -5 -5 -5 -5 -5 -5 -5 -4 -4 -4 -4 -4 -4 -3 -3 --------- Run | Jun Mat Min Mat Min Exi Min Mat Fac Low Low Zio Pro Fac Low Low Dat Pro Fac Was Fac Upp Upp War Pro Fac Ext Cet Arc Hub Res Qua Total 16959 | 53 905 343 1271 604 155 466 742 723 487 550 902 687 691 138 405 80 493 118 551 542 876 780 656 867 486 689 167 56 166 861 449 Wait 757 | . 22 1 189 9 . 1 37 35 4 4 . . 28 . 1 . 1 . 38 27 9 16 9 38 78 35 21 . 18 71 65 Move 14348 | 41 790 305 922 564 143 445 589 550 464 484 871 644 570 135 380 80 411 98 405 479 844 722 581 761 343 518 115 48 121 623 302 Hop . | . . . . . . . . . . . . . . . . . . . . . . . . . . . . . . . . Pick Up 212 | 6 17 7 23 1 4 3 9 13 3 7 13 7 10 . 4 . 2 8 6 8 3 2 4 3 6 7 6 . . 18 12 Fast Attach 112 | 6 3 3 6 6 2 . 9 10 . . 2 4 6 . . . 4 . 10 2 . 4 3 3 2 5 2 3 . 12 5 Attach 110 | . 2 2 4 1 . 2 7 8 1 13 3 1 7 1 1 . 3 2 . 2 . . . 3 6 4 2 1 2 14 18 Detach 42 | . 1 1 3 1 . . 1 3 . . 1 . 5 . . . 1 . 9 2 . . 3 . 3 1 . 1 . 4 2 Swap 197 | . 4 2 17 4 . 4 8 21 4 10 1 4 13 1 2 . 16 2 6 4 5 4 7 16 5 13 4 . 4 14 2 Drop 253 | . 10 11 21 8 6 1 12 25 2 . 8 11 13 1 2 . 5 7 20 11 4 5 8 4 7 12 10 3 . 14 12 Fire 679 | . 56 11 85 10 . 10 70 46 7 21 . 16 38 . 14 . 29 1 . 6 11 27 2 30 36 15 7 . 18 85 28 Melee 104 | . . . . . . . . 12 2 11 3 . 1 . . . 3 . 57 . . . . 9 . 3 . . . 3 . Ram . | . . . . . . . . . . . . . . . . . . . . . . . . . . . . . . . . Kick . | . . . . . . . . . . . . . . . . . . . . . . . . . . . . . . . . Crush 12 | . . . 1 . . . . . . . . . . . . . . . . 1 . . . . . 1 . . 3 3 3 Escape Stasis . | . . . . . . . . . . . . . . . . . . . . . . . . . . . . . . . . Rewire 133 | . . . . . . . . . . . . . . . 1 . 18 . . . . . 39 . . 75 . . . . . Trap . | . . . . . . . . . . . . . . . . . . . . . . . . . . . . . . . . Miscellaneous . | . . . . . . . . . . . . . . . . . . . . . . . . . . . . . . . . Route ------- -11/Junkyard -10/Materials (discovered 4 exits: *Mat x3 / *Min) -10/Mines -9/Materials (discovered 5 exits: *Mat x3 / *Min x2) -9/Mines (discovered 4 exits: *Mat x2 / *Exi / [*Zio]) -9/Exiles -8/Mines (discovered 2 exits: *Mat x2) -8/Materials (discovered 2 exits: *Fac x2) -7/Factory (discovered 4 exits: *Fac / Sto / *Low x2) -7/Lower Caves -7/Lower Caves (discovered 2 exits: *Fac / [*Zio]) -7/Zion (discovered 2 exits: Dee / *Pro) -6/Proximity Caves -6/Factory (discovered 2 exits: *Low x2) -6/Lower Caves -6/Lower Caves (discovered 2 exits: *Fac / *Dat) -6/Data Miner -5/Proximity Caves -5/Factory (discovered 3 exits: Fac x2 / Upp) -5/Waste -5/Factory (discovered 2 exits: *Upp x2) -5/Upper Caves -5/Upper Caves (discovered 2 exits: *Fac / *War) -5/Warlord -4/Proximity Caves -4/Factory (discovered 3 exits: Res x2 / *Ext) -4/Extension (discovered 2 exits: *Res / *Cet) -4/Cetus -4/Archives (discovered 2 exits: [*Hub x2]) -4/Hub_04(d) -3/Research (discovered 4 exits: *Res x2 / *Qua x2) -3/Quarantine (discovered 1 exit: *Res) History --------- Turn | Location | Event 10 | -11/Junkyard | Discovered new exit (range 14) 57 | -11/Junkyard | Entered Materials 91 | -10/Materials | Discovered new exit (range 15) 237 | -10/Materials | Discovered new exit (range 8) 308 | -10/Materials | Build established: Mutant 424 | -10/Materials | Discovered new exit (range 3) 534 | -10/Materials | Identified exit to Mines 764 | -10/Materials | Discovered new exit (range 13) 1469 | -10/Materials | Entered Mines 1580 | -10/Mines | Assembled infested the area 1585 | -10/Mines | Assisted by a Guerilla fighting off Assembled 1590 | -10/Mines | Met a Derelict who couldn't figure out how to use a Trap Extractor 1682 | -10/Mines | Learned Materials trap positions 1698 | -10/Mines | Found a damaged Exp. Sensor Array with a note attached 1702 | -10/Mines | Found Prototype Device 1702 | -10/Mines | Identified Exp. Sensor Array 1759 | -10/Mines | Met a Derelict shopkeep closing up shop 1795 | -10/Mines | System corruption reached 10% 1853 | -10/Mines | Learned Materials terminal intel 1882 | -10/Mines | Discovered new exit (range 20) 2011 | -10/Mines | Entered Materials 2011 | -9/Materials | Evolved 2 slots: Propulsion x1, Utility x1 2012 | -9/Materials | Loaded intel: 22 trap records 2013 | -9/Materials | Loaded intel: 12 terminal locations 2061 | -9/Materials | Hacking Suite fried by hacking feedback 2147 | -9/Materials | Discovered new exit (range 5) 2315 | -9/Materials | Repaired Mni. Grenade Launcher 2424 | -9/Materials | Repaired Exp. Sensor Array 2558 | -9/Materials | Discovered new exit (range 4) 2640 | -9/Materials | Identified exit to Mines 2989 | -9/Materials | Discovered new exit (range 16) 3255 | -9/Materials | Discovered new exit (range 8) 3998 | -9/Materials | Entered Mines 4132 | -9/Mines | Learned Materials terminal intel 4169 | -9/Mines | A weapon hastily lodged in a ceiling crevice suddenly fell to the ground 4878 | -9/Mines | A Derelict revealed a hidden shortcut to a safe place 4931 | -9/Mines | Deemed a non-threat by the Exiles lab entrance 4933 | -9/Mines | Discovered new exit (range 5) 4965 | -9/Mines | Discovered new exit (range 9) 5069 | -9/Mines | Found a hidden stash of uninstalled traps 5103 | -9/Mines | Discovered new exit (range 6) 5248 | -9/Mines | Entered Exiles 5248 | -9/Exiles | Accompanied by 2 allies 5278 | -9/Exiles | Led the pair of lost Derelicts to a safe place 5310 | -9/Exiles | Met 8R-AWN 5345 | -9/Exiles | Met EX-HEX 5429 | -9/Exiles | Met EX-DEC 5442 | -9/Exiles | Learned location of Zion (-7) 5549 | -9/Exiles | Discovered new exit (range 10) 5566 | -9/Exiles | Entered Mines 5781 | -8/Mines | Discovered new exit (range 15) 5863 | -8/Mines | Discovered new exit (range 6) 6563 | -8/Mines | Entered Materials 6563 | -8/Materials | Evolved 2 slots: Propulsion x1, Utility x1 6564 | -8/Materials | Loaded intel: 12 terminal locations 6887 | -8/Materials | Lost 3 parts (1p2u) 7217 | -8/Materials | Discovered new exit (range 8) 7647 | -8/Materials | Discovered new exit (range 10) 7766 | -8/Materials | Entered Factory 7766 | -7/Factory | Evolved 2 slots: Utility x2 7820 | -7/Factory | Identified exit to Storage 7820 | -7/Factory | Identified exit to Lower Caves 8354 | -7/Factory | Discovered new exit (range 5) 8466 | -7/Factory | Cargo convoy interrupted 9000 | -7/Factory | Entered Lower Caves 9065 | -7/Lower Caves | Encountered a Warlord checkpoint 9615 | -7/Lower Caves | Discovered new exit (range 10) 9665 | -7/Lower Caves | Spotted B-75 Beast 9713 | -7/Lower Caves | Entered another Lower Caves area 9847 | -7/Lower Caves | Learned Factory terminal intel 9860 | -7/Lower Caves | Attracted the attention of an 0b10 outpost 9927 | -7/Lower Caves | Destroyed 15 combat bots 9932 | -7/Lower Caves | Lost 10 parts (2n4u4w) 10051 | -7/Lower Caves | Discovered new exit (range 11) 10617 | -7/Lower Caves | Discovered new exit (range 10) 10774 | -7/Lower Caves | Learned Factory stockpile data 10915 | -7/Lower Caves | Entered Zion 10955 | -7/Zion | Given the Hacking Drone Bay 10955 | -7/Zion | Found Prototype Device 11064 | -7/Zion | Found Prototype Device 11208 | -7/Zion | System corruption cleaned by Quarantine Array 11369 | -7/Zion | Learned location of Quarantine (-3) 11583 | -7/Zion | Identified exit to Deep Caves 11971 | -7/Zion | Identified Bomb Factory No. 2 11972 | -7/Zion | Found CR-A16's Pointy Stick 12242 | -7/Zion | Given A8's code to call for help 12927 | -7/Zion | Discovered new exit (range 15) 13034 | -7/Zion | Entered Proximity Caves 13904 | -6/Proximity Caves | Discovered new exit (range 5) 14308 | -6/Proximity Caves | Attracted the attention of an 0b10 base 14344 | -6/Proximity Caves | Destroyed 7 combat bots 14419 | -6/Proximity Caves | Learned Research emergency access door positions 14419 | -6/Proximity Caves | Learned Extension stockpile data 14419 | -6/Proximity Caves | Learned Armory stockpile data 14520 | -6/Proximity Caves | Learned Factory security intel 14704 | -6/Proximity Caves | Entered Factory 14704 | -6/Factory | Evolved 2 slots: Power x1, Propulsion x1 14707 | -6/Factory | Loaded intel: 26 terminal locations 14853 | -6/Factory | Allied Derelicts emerged from ambush trap array 15264 | -6/Factory | Repaired Broken Arm. Wheel 15384 | -6/Factory | Identified exit to Lower Caves 15821 | -6/Factory | Entered Lower Caves 15832 | -6/Lower Caves | Encountered a Warlord checkpoint 15852 | -6/Lower Caves | Learned Factory security intel 15989 | -6/Lower Caves | Build established: Scavenger-Mutant 15992 | -6/Lower Caves | Discovered new exit (range 19) 16040 | -6/Lower Caves | Entered another Lower Caves area 16118 | -6/Lower Caves | Discovered new exit (range 13) 16206 | -6/Lower Caves | Learned location of 2 exits from Factory 16557 | -6/Lower Caves | Discovered new exit (range 9) 16625 | -6/Lower Caves | Encountered a Warlord checkpoint 16630 | -6/Lower Caves | Attracted the attention of an 0b10 checkpoint 16694 | -6/Lower Caves | Entered Data Miner 16694 | -6/Data Miner | Discovered new exit (range 6) 16715 | -6/Data Miner | Met Data Miner 16770 | -6/Data Miner | Learned location of Section 7 (-3) 16770 | -6/Data Miner | Acquired the access code to Warlord's prototype stash 16786 | -6/Data Miner | Received God Mode back door access code from Data Miner 16822 | -6/Data Miner | Entered Proximity Caves 17030 | -5/Proximity Caves | Spotted B-75 Beast 17032 | -5/Proximity Caves | Escorted by Enhanced Grunt 17046 | -5/Proximity Caves | Destroyed B-75 Beast 17107 | -5/Proximity Caves | Attracted the attention of an 0b10 outpost 17307 | -5/Proximity Caves | Learned Factory non-interactive machine intel 17416 | -5/Proximity Caves | Acquired the password to a Derelict Tinkerer's latest research 17430 | -5/Proximity Caves | Found Prototype Special Weapon 17430 | -5/Proximity Caves | Identified Molecular Deconstructor 17574 | -5/Proximity Caves | Learned location of 1 exit from Upper Caves 17590 | -5/Proximity Caves | Discovered new exit (range 14) 17621 | -5/Proximity Caves | Entered Factory 17621 | -5/Factory | Evolved 2 slots: Propulsion x1, Utility x1 17622 | -5/Factory | Identified exit to Upper Caves 17623 | -5/Factory | Identified exit to Factory 17625 | -5/Factory | Loaded intel: 233 non-interactive machine locations 17797 | -5/Factory | Sucked down chute 17797 | -5/Factory | Entered Waste 17798 | -5/Waste | Joined by Warlord forces that had cleared the area 17965 | -5/Waste | Found Prototype Device 17965 | -5/Waste | Identified Femtoactuators 18092 | -5/Waste | Discovered new exit (range 22) 18106 | -5/Waste | Build established: Mutant 18360 | -5/Waste | A Compactor rumbled back to life 18360 | -5/Waste | Spotted C-40 Crusher 18367 | -5/Waste | Allies destroyed C-40 Crusher 18407 | -5/Waste | Build established: Scavenger-Mutant 18590 | -5/Waste | A Compactor rumbled back to life 18590 | -5/Waste | Spotted C-40 Crusher 18590 | -5/Waste | Allies destroyed C-40 Crusher 18593 | -5/Waste | Entered Factory 18593 | -5/Factory | Accompanied by 19 allies 19101 | -5/Factory | Incoming investigation squad redirected 19193 | -5/Factory | First assault squad dispatched 19406 | -5/Factory | Entered Upper Caves 19406 | -5/Upper Caves | Accompanied by 10 allies 19407 | -5/Upper Caves | Identified exit to Upper Caves 19892 | -5/Upper Caves | Learned 8 Factory zone layouts 19894 | -5/Upper Caves | Encountered a Warlord checkpoint 20164 | -5/Upper Caves | Attracted the attention of an 0b10 checkpoint 20763 | -5/Upper Caves | Entered another Upper Caves area 20763 | -5/Upper Caves | Discovered exit to Factory (range 13) 20884 | -5/Upper Caves | Found Alien Artifact 20884 | -5/Upper Caves | Identified Dimensional Node Initializer 20884 | -5/Upper Caves | Initialized slip node 21144 | -5/Upper Caves | Attracted the attention of an 0b10 checkpoint 21432 | -5/Upper Caves | Learned 4 Factory zone layouts 21568 | -5/Upper Caves | Learned Factory terminal intel 21716 | -5/Upper Caves | Discovered new exit (range 7) 21991 | -5/Upper Caves | Entered Warlord 22226 | -5/Warlord | Received a Watcher feed algorithm from an ecstatic Tinkerer 22433 | -5/Warlord | Learned Research stockpile data 22434 | -5/Warlord | Learned 4 Research zone layouts 22434 | -5/Warlord | Learned 4 Testing zone layouts 22436 | -5/Warlord | Learned Testing security intel 22436 | -5/Warlord | Learned Factory repair station intel 22469 | -5/Warlord | Visited the Vortex Lab 22474 | -5/Warlord | Warlord's base attacked by MAIN.C 22477 | -5/Warlord | Found Prototype Energy Gun 22478 | -5/Warlord | Identified Vortex Shotgun 22486 | -5/Warlord | Found Prototype Energy Gun 22487 | -5/Warlord | Identified Vortex Rail 22490 | -5/Warlord | Found Vortex Rail 22603 | -5/Warlord | Met Warlord 22618 | -5/Warlord | Opened Warlord's prototype stash 22625 | -5/Warlord | Found Prototype Reactor 22625 | -5/Warlord | Identified Vortex Chain Reactor 22633 | -5/Warlord | Found Prototype Device 22634 | -5/Warlord | Identified Thermal Barrier 22643 | -5/Warlord | Found Prototype Processor 22643 | -5/Warlord | Identified Exp. Armor Integrity Analyzer 22664 | -5/Warlord | Build established: Commander-Mutant 22824 | -5/Warlord | Warlord forces counterattacked 22896 | -5/Warlord | P-80 Master assimilated allied 4O-WZS(g) 22900 | -5/Warlord | P-80 Master assimilated allied KA-4PU(g) 22912 | -5/Warlord | Spotted Striker 22917 | -5/Warlord | Spotted Striker 22928 | -5/Warlord | Allies destroyed Striker 22958 | -5/Warlord | Discovered new exit (range 9) 22971 | -5/Warlord | Entered Proximity Caves 22971 | -4/Proximity Caves | Accompanied by 1 ally 22998 | -4/Proximity Caves | Spotted B-86 Titan 23081 | -4/Proximity Caves | Revealed the true nature of CR-A16's Pointy Stick 23083 | -4/Proximity Caves | Destroyed B-86 Titan 23179 | -4/Proximity Caves | Learned location of 2 exits from Research 23235 | -4/Proximity Caves | Build established: Mutant 23406 | -4/Proximity Caves | Attracted the attention of an 0b10 checkpoint 23497 | -4/Proximity Caves | Learned location of 1 exit from Research 24269 | -4/Proximity Caves | Discovered exit to Factory (range 9) 24321 | -4/Proximity Caves | Entered Factory 24321 | -4/Factory | Evolved 2 slots: Utility x1, Weapon x1 24322 | -4/Factory | Identified exit to Extension 24323 | -4/Factory | Identified exit to Research 24324 | -4/Factory | Loaded intel: 28 terminal locations 24325 | -4/Factory | Loaded intel: 6 repair station locations 24683 | -4/Factory | Spotted B-86 Titan 25083 | -4/Factory | Entered Extension 25162 | -4/Extension | Rescued a captive Derelict 25163 | -4/Extension | Rescued a captive Derelict 25177 | -4/Extension | Rescued a captive Derelict 25220 | -4/Extension | Incoming investigation squad redirected 25255 | -4/Extension | Rescued a captive Derelict 25350 | -4/Extension | Build established: Skirmisher 25480 | -4/Extension | Spotted B-86 Titan 25496 | -4/Extension | Spotted B-86 Titan 25517 | -4/Extension | Destroyed B-86 Titan 25530 | -4/Extension | Destroyed B-86 Titan 25558 | -4/Extension | Lost 3 parts (1p2u) 25620 | -4/Extension | Rescued a captive Derelict 25630 | -4/Extension | Energy Cycler disabled 25665 | -4/Extension | Rescued A7 26006 | -4/Extension | Build established: Scavenger-Mutant 26027 | -4/Extension | Discovered exit to Research (range 10) 26029 | -4/Extension | Discovered new exit (range 6) 26136 | -4/Extension | Entered Cetus 26136 | -4/Cetus | Accompanied by 6 allies (A7) 26141 | -4/Cetus | Acquired a Cetus Manufacturing Module code from A7 26152 | -4/Cetus | Spotted Cetus Guard 26153 | -4/Cetus | Spotted Cetus Guard 26154 | -4/Cetus | Spotted Cetus Guard 26160 | -4/Cetus | Spotted Cetus Guard 26162 | -4/Cetus | Allies destroyed Cetus Guard 26173 | -4/Cetus | Destroyed Cetus Guard 26176 | -4/Cetus | Allies destroyed Cetus Guard 26176 | -4/Cetus | Destroyed Cetus Guard 26314 | -4/Cetus | Cetus Manufacturing Module disabled 26345 | -4/Cetus | Failed to start Cetus Manufacturing Module 26358 | -4/Cetus | Discovered new exit (range 21) 26398 | -4/Cetus | Entered Archives 26398 | -4/Archives | Accompanied by 3 allies (A7) 26423 | -4/Archives | Met Zhirov 26429 | -4/Archives | Reinforcements dispatched to Archives 26444 | -4/Archives | Discovered new exit (range 21) 26451 | -4/Archives | Discovered new exit (range 21) 26474 | -4/Archives | Reinforcements dispatched to Archives 26476 | -4/Archives | Zhirov warped through subspace 26486 | -4/Archives | Entered Hub_04(d) 26517 | -4/Hub_04(d) | Build established: Scavenger-Tank 26565 | -4/Hub_04(d) | Discovered exit to Research (range 3) 26722 | -4/Hub_04(d) | Network Hub disabled 26726 | -4/Hub_04(d) | Spotted Lightning 26726 | -4/Hub_04(d) | Spotted Lightning 26728 | -4/Hub_04(d) | Spotted Lightning 26738 | -4/Hub_04(d) | Spotted Lightning 26747 | -4/Hub_04(d) | Spotted Lightning 26751 | -4/Hub_04(d) | Spotted Lightning 26755 | -4/Hub_04(d) | System corruption reached 10% 26761 | -4/Hub_04(d) | Destroyed Lightning 26768 | -4/Hub_04(d) | First assault squad dispatched 26769 | -4/Hub_04(d) | Entered Research 26769 | -3/Research | Evolved 2 slots: Utility x2 26770 | -3/Research | Identified exit to Research 26770 | -3/Research | Identified exit to Quarantine 26782 | -3/Research | Destroyed 8 combat bots 26793 | -3/Research | Lost 3 parts (1p2u) 27017 | -3/Research | Build established: Scavenger-Mutant 27201 | -3/Research | Garrison activated, responded to threat 27405 | -3/Research | Destroyed 10 combat bots 27803 | -3/Research | Build established: Scavenger-Tank 27993 | -3/Research | Discovered exit to Research (range 22) 28133 | -3/Research | Destroyed 10 combat bots 28146 | -3/Research | Lost 10 parts (1p1n6u2w) 28162 | -3/Research | Spotted B-90 Cyclops 28175 | -3/Research | Destroyed B-90 Cyclops 28179 | -3/Research | Found Quantum Capacitor 28197 | -3/Research | Entered Quarantine 28214 | -3/Quarantine | Found Alien Artifact 28214 | -3/Quarantine | Identified Phase Armor 28259 | -3/Quarantine | Found Alien Energy Cannon 28259 | -3/Quarantine | Identified Core Cannon 28503 | -3/Quarantine | Found Alien Artifact 28503 | -3/Quarantine | Identified Subatomic Replicator 28564 | -3/Quarantine | Spotted Alpha 7 28665 | -3/Quarantine | Discovered exit to Research (range 66) 28684 | -3/Quarantine | System corruption reached 10% 28742 | -3/Quarantine | Core integrity fell below 50% 28819 | -3/Quarantine | Lost 11 parts (3p3n3u2w) 28855 | -3/Quarantine | Core integrity fell below 20% 28860 | -3/Quarantine | Destroyed by X-77 Beamer with Gatling Laser Last Messages --------------- 28822_ ALERT: Rogue bot located, Programmers report to Quarantine Zone 2Q. 28824_ Arm. Heavy Treads destroyed. 28843_ System corrupted: IFF burst signal emitted. 28850_ Slug penetrates Ion Accelerator. 28851_ Imp. Heavy Treads destroyed. 28851_ Acquired Adv. Medium Treads. 28854_ Arm. Heavy Treads destroyed. 28856_ Ion Accelerator explodes. 28856_ G-67 Veteran destroyed. 28856_ R-10 Processor destroyed. 28856_ Door malfunctions. 28856_ Subatomic Condenser disabled. 28857_ Slug penetrates Wall. 28858_ System corrupted: Energy discharge (-5). 28858_ Penetrated by Slug. 28858_ Slug penetrates Wall. 28858_ Penetrated by Slug. 28858_ Slug penetrates Wall. 28858_ Penetrated by Slug. 28859_ Adv. Medium Treads destroyed. Map ----- +----------------------------------------------------+ | ??????????????????# # "" #??? | | ################### # " """ #??? | | # = + # """ #??? | | # ###########/################# " " #??? | | """ # # #??????????# " #??? | | """ #] # #??????????# #??? | | """ + [# #??????????######+###??? | | """ # # #???????????????# #????? | | """ # # """ """ """ #???????????????# #????? | | """ # # """" """" """" #???????????????# #????? | | """ # # """" """" """" ########+######## #????? | | ###### """ """ """ + c #????? | | #????# # #????? | | ##################x######## #????? | | w ^ #????? | | g ####????? | | ????????? | | R h ????????? | | g ###########+#?????????? | | h m = #?????????????????????? | | x=%! #?????????????????????? | | hpp != #?????????????????????? | | == #?????????????????????? | | ################ #?????????????????????? | | ##?# / #?????????????????????? | | #?# #"" "" @ #?????????????????????? | | ??# #"" """ #?????????????????????? | | ""# """"""""" #"T """ ####??????????????????? | | T"# """ """ #"" #??????????????????? | | ""# #"" < #??????????????????? | | ### # #??????????????????? | | #?############# #??????????????????? | | #?????????????####+######+####??????????????????? | | ##???????????????????????????????????????????????? | | ?????????????????????????????????????????????????? | | ?????????????????????????????????????????????????? | | ?????????????????????????????????????????????????? | | ?????????????????????????????????????????????????? | | ?????????????????????????????????????????????????? | | ?????????????????????????????????????????????????? | | ?????????????????????????????????????????????????? | | ?????????????????????????????????????????????????? | | ?????????????????????????????????????????????????? | | ?????????????????????????????????????????????????? | | ?????????????????????????????????????????????????? | | ?????????????????????????????????????????????????? | | ?????????????????????????????????????????????????? | | ?????????????????????????????????????????????????? | | ?????????????????????????????????????????????????? | | | +----------------------------------------------------+ Best States ------------- Heat Dissipation 77 Coolant Potential 120 Energy Generation 55 Energy Capacity 700 Matter Stores 300 Matter Capacity 300 Sight Range 22 Robot Scan Range 20 Terrain Scan Density 10 Jamming Range 14 Power Amplification 40 Armor Coverage 1650 Resistance: TH 50 Weapon Cycling 25 Melee Speed Boost 50 Evasion (%) 40 Targeting Accuracy 16 Target Analysis 8 Armor Integrity Analysis 50 Recoil Reduction 6 Matter Filtering 30 Kinecelleration 30 Offensive Hacking 30 Item Schematics ----------------- Hcp. Storage Unit | -10/Materials | Hacked System Guard | -7/Factory | Downloaded Shock Absorption System | -7/Zion | Archive Arm. Leg | -7/Zion | Archive Mak. Spear | -7/Zion | Archive Lgt. Angular Momentum Engine | -7/Zion | Archive Corruption Screen | -7/Zion | Archive Field Propulsion Drive | -7/Zion | Archive Mak. Flight Unit | -7/Zion | Archive Coil Gun | -7/Zion | Archive Imp. Transmission Jammer | -7/Zion | Archive Stasis Canceller | -7/Zion | Archive Dynamic Insulation System | -7/Zion | Archive Imp. Titanium Leg | -7/Zion | Archive Adv. Melee Analysis Suite | -7/Zion | Archive Imp. KE Penetrator | -7/Zion | Archive Arm. Wheel | -6/Factory | Scanalyzed Combat Drone Bay | -6/Data Miner | Free Lgt. Regenerative Plating | -6/Data Miner | Free Imp. Matter Compressor | -6/Data Miner | Free Hvy. Proton Cannon | -6/Data Miner | Free Cld. Nuclear Pulse Thruster | -6/Data Miner | Free Field Propulsion Array | -6/Data Miner | Free Quantum Capacitor | -6/Data Miner | Free Matter Neutralizer | -6/Data Miner | Free Imp. Dynamic Insulation System | -6/Data Miner | Free Railgun | -6/Data Miner | Free Cmb. Antigrav System | -6/Data Miner | Free Robot Schematics ------------------ A-02 Transporter | -7/Zion | Archive L-41 Fighter | -7/Zion | Archive T-07 Excavator | -7/Zion | Archive R-10 Processor | -6/Data Miner | Free X-72 Disruptor | -6/Data Miner | Free S-27 Virus | -6/Data Miner | Free G-67 Veteran | -6/Data Miner | Free Fabricated ------------ Nothing Alien Tech Used ----------------- Dimensional Node Initializer Phase Armor Core Cannon Subatomic Replicator Achievements -------------- None Challenges ------------ None Game ------ Seed ProcessingIntegratedMinigun Manual? 0 Play Time 05:14:24 Cumulative 166.4 hours Start 2023.03.05 @ 20:45:52 End 2023.03.11 @ 11:06:24 Sessions 21 Manual Loads 0 Difficulty Rogue Special Mode None Game No. 79 Rogue 79 Adventurer 0 Explorer 0 Win Type - Total 7 Types 7/0/0/0/0/0/0/0/0 Lore% 59 Gallery% 73 Achievement% 59 Wizard Run 0 Options --------- ASCII 0 Keyboard 0 Movement Numpad Keybinds 0 Fullscreen 2 Font 24/Smallcaps Map View 76x50 Tactical HUD 1 Map Filters NONE Filters NONE Steam 1 RUN: 334e6ce2-10e6-4912-8b0a-ef98ec7670f7